bitfinex/quotes_BTCUSD_20251104
["timestamp","ask_amount","ask_price","bid_price","bid_amount"]
[1762297447877,0.19758533,101440.0,101420.0,1.27985959]
[1762297448075,0.19758533,101440.0,101420.0,0.93985959]
[1762297448298,0.00042445,101440.0,101430.0,0.25522769]
[1762297448442,0.00042445,101440.0,101430.0,0.83018693]
[1762297448866,0.19758533,101440.0,101430.0,0.63300661]
[1762297449149,0.00042445,101440.0,101430.0,0.83018693]
[1762297449352,0.00042445,101440.0,101430.0,0.97300661]
[1762297449524,0.19758533,101440.0,101430.0,1.17018693]
[1762297450079,0.00142445,101440.0,101430.0,1.17018693]
[1762297450434,0.00142445,101440.0,101430.0,1.17378992]
[1762297450838,0.00142445,101440.0,101430.0,1.17018693]
[1762297451011,0.19858533,101440.0,101430.0,0.59047032]
[1762297451214,0.19858533,101440.0,101430.0,0.34]
[1762297451580,0.19758533,101440.0,101430.0,0.34]
[1762297451708,0.19758533,101440.0,101420.0,0.85326637]
[1762297451904,0.19758533,101440.0,101430.0,0.28254354]
[1762297452106,0.19758533,101440.0,101420.0,0.61354976]
[1762297452107,0.19718032,101430.0,101420.0,0.61354976]
[1762297452309,0.19718032,101430.0,101420.0,0.3856]
[1762297452533,0.19718032,101430.0,101420.0,0.98520661]
[1762297452922,0.19718032,101430.0,101420.0,1.21315637]
[1762297453272,0.19718032,101430.0,101420.0,1.01595661]
[1762297453478,0.19718032,101430.0,101420.0,0.96531661]
[1762297453834,0.1972192,101410.0,101400.0,0.71079983]
[1762297454040,0.1972192,101410.0,101390.0,0.61046661]
[1762297454252,0.19725811,101390.0,101380.0,0.74775983]
[1762297454465,0.20708016,101410.0,101380.0,0.92415126]
[1762297454667,0.19723865,101400.0,101380.0,0.16804322]
[1762297454873,0.19723865,101400.0,101380.0,0.36531896]
[1762297455078,0.19723865,101400.0,101390.0,0.57971661]
[1762297455282,0.19723865,101400.0,101390.0,0.77697472]
[1762297455496,0.20708016,101410.0,101390.0,1.11745641]
[1762297455716,0.00028,101440.0,101420.0,0.19718084]
[1762297455927,0.00028,101440.0,101430.0,0.23130032]
[1762297456131,0.19744088,101440.0,101430.0,0.59394661]
[1762297456343,0.19744088,101440.0,101420.0,0.93498661]
[1762297456580,0.19718032,101430.0,101420.0,1.13218637]
[1762297456798,0.00028,101440.0,101430.0,0.21707032]
[1762297457009,0.00028,101440.0,101430.0,0.91290015]
[1762297457220,0.00042445,101440.0,101430.0,0.91290015]
[1762297457844,0.19758533,101440.0,101420.0,0.55246976]
[1762297458047,0.19718032,101430.0,101420.0,0.55246976]
[1762297458243,0.19718032,101430.0,101420.0,0.01527]
[1762297458464,0.19718032,101430.0,101420.0,0.21246976]
[1762297458970,0.19758533,101440.0,101430.0,0.19718032]
[1762297459098,0.00042445,101440.0,101430.0,0.82753693]
[1762297459320,0.00042445,101440.0,101430.0,0.79678693]
[1762297459950,0.00042445,101440.0,101430.0,0.82753693]
[1762297460145,0.00042445,101440.0,101430.0,0.83113992]
[1762297460386,0.00042445,101440.0,101430.0,0.82753693]
[1762297460577,0.19758533,101440.0,101430.0,0.19718032]
[1762297460761,0.24646533,101440.0,101430.0,0.19718032]
[1762297460968,0.24646533,101440.0,101420.0,1.21754959]
[1762297461172,0.24646533,101440.0,101430.0,0.001]
[1762297461381,0.21731533,101440.0,101420.0,1.21754959]
[1762297461559,0.00421885,101430.0,101420.0,1.21754959]
[1762297461957,0.00421885,101430.0,101420.0,1.26818959]
[1762297462286,0.00421885,101430.0,101420.0,0.68847298]
[1762297462504,0.20139917,101430.0,101420.0,1.21754959]
[1762297462817,0.00421885,101430.0,101420.0,1.26918959]
[1762297463222,0.00421885,101430.0,101420.0,0.70925298]
[1762297463422,0.20139917,101430.0,101420.0,1.26848959]
[1762297463553,0.20139917,101430.0,101420.0,1.23773959]
[1762297464142,0.00421885,101430.0,101420.0,0.65802298]
[1762297464307,0.00421885,101430.0,101420.0,1.23773959]
[1762297464719,0.00421885,101430.0,101420.0,1.26848959]
[1762297465525,0.00421885,101430.0,101420.0,1.42159258]
[1762297465750,0.00421885,101430.0,101420.0,1.45689417]
[1762297465878,0.00421885,101430.0,101420.0,0.87717756]
[1762297466231,0.00421885,101430.0,101420.0,1.54610258]
[1762297466430,0.00421885,101430.0,101420.0,1.48947346]
[1762297467945,0.00421885,101430.0,101420.0,0.96638597]
[1762297468158,0.00421885,101430.0,101420.0,1.54610258]
[1762297468356,0.00421885,101430.0,101420.0,1.5099203]
[1762297468557,0.20139917,101430.0,101420.0,0.73200393]
[1762297468811,0.24129778,101430.0,101420.0,0.03530159]
[1762297469009,0.29017778,101430.0,101420.0,0.002]
[1762297469212,0.22112917,101430.0,101420.0,0.002]
[1762297469422,0.25027917,101430.0,101420.0,0.002]
[1762297469853,0.20139917,101430.0,101420.0,0.002]
[1762297470066,0.19719976,101420.0,101410.0,0.01353]
[1762297470654,0.19818032,101430.0,101410.0,0.26237283]
[1762297470863,0.19719976,101420.0,101410.0,0.8447088]
[1762297471074,0.19719976,101420.0,101410.0,0.84110581]
[1762297471285,0.20118032,101430.0,101420.0,0.19719976]
[1762297471493,0.20744498,101440.0,101420.0,0.33320298]
[1762297471722,0.20744498,101440.0,101420.0,0.13600322]
[1762297471723,0.19918032,101430.0,101420.0,0.13600322]
[1762297471952,0.19918032,101430.0,101420.0,0.05064]
[1762297472156,0.19918032,101430.0,101410.0,0.04883159]
[1762297472157,0.19719976,101420.0,101410.0,0.04883159]
[1762297472363,0.1972192,101410.0,101400.0,0.45006159]
[1762297472578,0.20744498,101440.0,101420.0,0.1971985]
[1762297472788,0.20744498,101440.0,101430.0,0.19718032]
[1762297473008,0.19758533,101440.0,101430.0,0.21620032]
[1762297473213,0.19758533,101440.0,101430.0,0.24544032]
[1762297473421,0.00042445,101440.0,101430.0,0.24544032]
[1762297473637,0.19758533,101440.0,101430.0,0.21620032]
[1762297473842,0.19758533,101440.0,101430.0,0.01902]
[1762297474051,0.19958533,101440.0,101430.0,0.01902]
[1762297474264,0.19718032,101430.0,101420.0,0.46073539]
[1762297474702,0.19718032,101430.0,101420.0,0.37537217]
[1762297475121,0.19958533,101440.0,101430.0,0.19718032]
[1762297475334,0.19718032,101430.0,101420.0,0.65793515]
[1762297476672,0.19918032,101430.0,101420.0,0.46073539]
[1762297476919,0.19718032,101430.0,101420.0,0.46073539]
[1762297477131,0.20139917,101430.0,101420.0,0.47975539]
[1762297477334,0.00421885,101430.0,101420.0,0.70619515]
[1762297477538,0.20139917,101430.0,101420.0,0.70619515]
[1762297477714,0.20339917,101430.0,101420.0,0.70619515]
[1762297477916,0.20339917,101430.0,101420.0,0.37537217]
[1762297478708,0.20339917,101430.0,101420.0,0.53719976]
[1762297478909,0.20339917,101430.0,101420.0,0.34]
[1762297479139,0.19719976,101420.0,101410.0,0.1025583]
[1762297479364,0.19719976,101420.0,101410.0,0.04953217]
[1762297479586,0.19719976,101420.0,101410.0,0.19903217]
[1762297479727,0.19719976,101420.0,101410.0,0.53903217]
[1762297479942,0.19719976,101420.0,101410.0,0.19903217]
[1762297480129,0.19719976,101420.0,101410.0,0.53903217]
[1762297480326,0.1972192,101410.0,101400.0,0.1773583]
[1762297480657,0.2119592,101410.0,101400.0,0.0142]
[1762297480858,0.19723865,101400.0,101390.0,0.27397028]
[1762297481241,0.19723865,101400.0,101390.0,0.43703217]
[1762297481442,0.19723865,101400.0,101390.0,0.06855217]
[1762297481647,0.19723865,101400.0,101390.0,0.26581028]
[1762297481868,0.19723865,101400.0,101390.0,0.60581028]
[1762297482202,0.19723865,101400.0,101390.0,0.26629197]
[1762297482486,0.19723865,101400.0,101390.0,0.60629197]
[1762297482685,0.19723865,101400.0,101390.0,0.63477197]
[1762297483108,0.19723865,101400.0,101390.0,0.43751386]
[1762297483575,0.19723865,101400.0,101390.0,0.40903386]
[1762297483768,0.19723865,101400.0,101390.0,0.37366169]
[1762297483931,0.19723865,101400.0,101390.0,0.5505998]
[1762297484130,0.19723865,101400.0,101390.0,0.35334169]
[1762297484531,0.19723865,101400.0,101390.0,0.5505998]
[1762297484737,0.19721966,101410.0,101390.0,1.37639292]
[1762297484938,0.19721966,101410.0,101400.0,0.08536322]
[1762297485530,0.19721966,101410.0,101400.0,0.28260187]
[1762297485854,0.19721966,101410.0,101400.0,0.08536322]
[1762297486384,0.19721966,101410.0,101400.0,0.28260187]
[1762297486581,0.19721966,101410.0,101400.0,0.27260187]
[1762297486829,0.19921966,101410.0,101400.0,0.29292187]
[1762297487021,0.19921966,101410.0,101400.0,0.21755865]
[1762297487184,0.19921966,101410.0,101400.0,0.30292187]
[1762297487541,0.19921966,101410.0,101400.0,0.24603865]
[1762297487723,0.19921966,101410.0,101400.0,0.0488]
[1762297488097,0.19921966,101410.0,101400.0,0.13416322]
[1762297489447,0.19921966,101410.0,101400.0,0.34552796]
[1762297489620,0.002,101410.0,101400.0,0.33140187]
[1762297489817,0.002,101410.0,101400.0,1.44839499]
[1762297490021,0.002,101410.0,101400.0,1.56879243]
[1762297490392,0.00571903,101410.0,101400.0,1.56879243]
[1762297490653,0.00571903,101410.0,101400.0,1.62181856]
[1762297490961,0.37818144,101400.0,101390.0,0.24594956]
[1762297491312,0.38165049,101400.0,101390.0,0.26059956]
[1762297491713,0.38165049,101400.0,101390.0,0.30583956]
[1762297491914,0.38165049,101400.0,101390.0,1.08283268]
[1762297492354,0.38165049,101400.0,101390.0,1.16029854]
[1762297492575,0.38165049,101400.0,101390.0,0.30783956]
[1762297492738,0.38165049,101400.0,101390.0,0.35867184]
[1762297492938,0.38165049,101400.0,101390.0,1.13566496]
[1762297494936,0.38165049,101400.0,101390.0,0.35867184]
[1762297495148,0.38165049,101400.0,101390.0,0.32248956]
[1762297495354,0.38165049,101400.0,101390.0,0.2871398]
[1762297495504,0.57888914,101400.0,101390.0,0.3471398]
[1762297495706,0.57888914,101400.0,101390.0,0.08999169]
[1762297495933,0.57888914,101400.0,101390.0,0.07534169]
[1762297496141,0.57888914,101400.0,101390.0,0.2705998]
[1762297496305,0.57888914,101400.0,101390.0,0.2852498]
[1762297496514,0.57888914,101400.0,101390.0,0.2862498]
[1762297497697,0.57888914,101400.0,101390.0,0.2852498]
[1762297498210,0.38165049,101400.0,101390.0,0.2852498]
[1762297498978,0.38165049,101400.0,101390.0,0.2998998]
[1762297499413,0.38165049,101400.0,101390.0,1.07689292]
[1762297500163,0.38165049,101400.0,101390.0,0.2998998]
[1762297500364,0.38165049,101400.0,101390.0,1.07689292]
[1762297500769,0.38165049,101400.0,101390.0,1.14779466]
[1762297501114,0.38165049,101400.0,101390.0,0.08899169]
[1762297501311,0.59774914,101400.0,101390.0,0.01334169]
[1762297501685,0.63266214,101440.0,101430.0,0.19718032]
[1762297501686,0.00028,101440.0,101430.0,0.19718032]
[1762297501905,0.00028,101440.0,101430.0,0.53718032]
[1762297502079,0.00028,101440.0,101430.0,1.39555572]
[1762297502294,0.00028,101440.0,101430.0,0.6185626]
[1762297502493,0.00028,101440.0,101430.0,1.39555572]
[1762297502896,0.00037498,101440.0,101430.0,1.39555572]
[1762297503310,0.01474,101480.0,101470.0,0.19710259]
[1762297503516,0.02791,101490.0,101480.0,0.19708316]
[1762297503517,0.01494,101490.0,101480.0,0.19708316]
[1762297503719,0.03389497,101490.0,101480.0,0.19708316]
[1762297504167,0.06160497,101490.0,101480.0,0.19708316]
[1762297504364,0.03389497,101490.0,101480.0,0.19708316]
[1762297504573,0.01503497,101490.0,101480.0,0.19708316]
[1762297504773,0.00129497,101490.0,101480.0,0.19708316]
[1762297504926,0.00129497,101490.0,101480.0,1.1046395]
[1762297505129,0.00129497,101490.0,101480.0,0.32764638]
[1762297505332,0.00129497,101490.0,101480.0,1.14082178]
[1762297505333,0.00029497,101490.0,101480.0,1.14082178]
[1762297505752,0.00129497,101490.0,101480.0,1.14082178]
[1762297505961,0.00129497,101490.0,101480.0,0.36382866]
[1762297506290,0.00129497,101490.0,101480.0,0.32764638]
[1762297506901,0.00029497,101490.0,101480.0,0.32764638]
[1762297507510,0.00254443,101490.0,101480.0,0.32764638]
[1762297509130,0.01728443,101490.0,101480.0,0.32764638]
[1762297510297,0.01828443,101490.0,101480.0,0.32764638]
[1762297510498,0.07521443,101490.0,101480.0,0.32764638]
[1762297511059,0.01828443,101490.0,101480.0,0.32764638]
[1762297511354,0.07621443,101490.0,101480.0,0.32764638]
[1762297511734,0.27227818,101490.0,101480.0,0.13056322]
[1762297512149,0.27227818,101490.0,101460.0,0.20696163]
[1762297512150,0.19708316,101480.0,101460.0,0.20696163]
[1762297512303,0.05793,101470.0,101460.0,0.25208163]
[1762297513011,0.25503259,101470.0,101460.0,0.24224201]
[1762297513495,0.22453056,101550.0,101480.0,0.53708316]
[1762297513707,0.03536,101540.0,101530.0,0.19698611]
[1762297513917,1.00932217,101540.0,101510.0,0.34]
[1762297514130,0.19698611,101530.0,101520.0,0.00257167]
[1762297514337,0.19698611,101530.0,101500.0,0.37618228]
[1762297514338,0.2195778,101520.0,101500.0,0.37618228]
[1762297514537,0.01746,101510.0,101500.0,0.57322576]
[1762297514740,0.01746,101510.0,101500.0,0.53704348]
[1762297515353,0.04003,101510.0,101500.0,0.53704348]
[1762297515553,0.01746,101510.0,101500.0,0.53704348]
[1762297516550,0.04003,101510.0,101500.0,0.53704348]
[1762297517161,0.01946,101510.0,101500.0,0.53704348]
[1762297517527,0.002,101510.0,101500.0,0.53704348]
[1762297517731,0.002,101510.0,101500.0,1.35021888]
[1762297518046,0.00474884,101510.0,101500.0,0.57322576]
[1762297518249,0.02220884,101510.0,101500.0,0.53704348]
[1762297518469,0.02020884,101510.0,101500.0,0.53704348]
[1762297518881,0.85513196,101510.0,101490.0,0.2069004]
[1762297519073,0.02257,101500.0,101490.0,0.2069004]
[1762297519274,0.05793,101500.0,101490.0,0.2069004]
[1762297519469,1.03196745,101500.0,101480.0,0.20693731]
[1762297519688,0.01746,101520.0,101510.0,0.19701977]
[1762297519909,0.20681505,101540.0,101520.0,0.19700551]
[1762297520118,0.04003,101520.0,101500.0,0.54687713]
[1762297520280,0.01746,101520.0,101510.0,0.19702492]
[1762297520982,0.01746,101520.0,101510.0,0.28238814]
[1762297521202,0.01746,101520.0,101510.0,0.62238814]
[1762297521334,0.00048157,101540.0,101530.0,0.53698611]
[1762297522736,0.00048157,101540.0,101530.0,1.35929923]
[1762297523083,0.00048157,101540.0,101530.0,1.48084473]
[1762297523510,0.00048157,101540.0,101530.0,1.50084471]
[1762297523936,0.00048157,101540.0,101530.0,1.50384471]
[1762297524133,0.00048157,101540.0,101530.0,1.49384472]
[1762297524339,0.00048157,101540.0,101530.0,1.50384471]
[1762297524690,0.00397909,101540.0,101530.0,0.7168516]
[1762297524902,0.0002,101550.0,101530.0,0.67066933]
[1762297525109,0.05,101560.0,101550.0,0.57312959]
[1762297525110,0.03731,101560.0,101550.0,0.57312959]
[1762297525308,8e-05,101580.0,101570.0,0.53690853]
[1762297525448,0.00022443,101580.0,101570.0,0.34]
[1762297525787,0.05815443,101580.0,101550.0,0.25219467]
[1762297526033,0.01746,101570.0,101560.0,0.53692042]
[1762297526232,0.00022443,101580.0,101560.0,0.62228364]
[1762297526431,0.00022443,101580.0,101570.0,0.19690853]
[1762297526639,0.00822443,101580.0,101570.0,0.19690853]
[1762297526850,0.26304515,101580.0,101560.0,0.53692042]
[1762297527071,0.01746,101570.0,101560.0,0.53692042]
[1762297527307,0.21968515,101580.0,101560.0,0.53892042]
[1762297527556,0.21968515,101580.0,101570.0,0.19690853]
[1762297527802,0.00022443,101580.0,101560.0,0.53692042]
[1762297528022,0.19711515,101580.0,101570.0,0.08536322]
[1762297528232,0.025,101610.0,101590.0,0.19686437]
[1762297528598,0.025,101610.0,101600.0,0.20472006]
[1762297528801,0.01746,101600.0,101590.0,0.58226437]
[1762297529027,0.04003,101600.0,101590.0,0.19686977]
[1762297529235,0.07539,101600.0,101580.0,0.5466978]
[1762297529635,0.01746,101600.0,101590.0,0.19686977]
[1762297529841,0.01746,101600.0,101580.0,0.5466978]
[1762297529842,0.21431039,101600.0,101580.0,0.5920978]
[1762297530049,0.21431039,101600.0,101590.0,0.53686977]
[1762297530050,0.01746,101600.0,101590.0,0.53686977]
[1762297530259,0.01946,101600.0,101590.0,0.34]
[1762297530482,0.27424039,101600.0,101580.0,0.2422886]
[1762297530980,0.04203,101600.0,101590.0,0.19686977]
[1762297531199,0.002,101600.0,101590.0,0.19686977]
[1762297531636,0.67071841,101630.0,101620.0,0.19681165]
[1762297531637,0.025,101630.0,101620.0,0.19681165]
[1762297531860,0.06517427,101630.0,101620.0,0.34]
[1762297532061,0.10101909,101630.0,101610.0,0.1968304]
[1762297532293,0.09877427,101630.0,101610.0,0.5368304]
[1762297532515,0.04179427,101630.0,101620.0,0.19681165]
[1762297532929,0.04179427,101630.0,101610.0,0.1968304]
[1762297532930,0.26414655,101630.0,101610.0,0.1968304]
[1762297533134,0.23858655,101630.0,101610.0,0.1968304]
[1762297533337,0.04179427,101630.0,101620.0,0.19681165]
[1762297533549,0.04679427,101630.0,101620.0,0.19681165]
[1762297533719,0.04179427,101630.0,101620.0,0.19681165]
[1762297533923,0.065651,101630.0,101620.0,0.19681165]
[1762297534122,0.26244328,101630.0,101620.0,0.19681165]
[1762297534352,0.065651,101630.0,101620.0,0.19681165]
[1762297534729,0.31960328,101630.0,101610.0,0.28219362]
[1762297535082,0.04479427,101630.0,101610.0,0.19683102]
[1762297535302,0.04479427,101630.0,101620.0,1.32187819]
[1762297535303,0.02476427,101630.0,101620.0,1.32187819]
[1762297535510,0.02476427,101630.0,101620.0,0.53681165]
[1762297535713,0.02676427,101630.0,101620.0,0.53681165]
[1762297535916,0.09857427,101630.0,101620.0,0.53681165]
[1762297536160,0.06497427,101630.0,101620.0,0.53681165]
[1762297536382,0.29536655,101630.0,101620.0,0.34]
[1762297536553,0.34124655,101630.0,101610.0,0.19683102]
[1762297536786,0.25397165,101620.0,101600.0,0.20668973]
[1762297536986,0.02356,101610.0,101600.0,0.53685039]
[1762297537123,0.25399102,101610.0,101590.0,0.28223299]
[1762297537322,0.02356,101600.0,101590.0,0.19686977]
[1762297537590,0.05716,101600.0,101590.0,0.19686977]
[1762297537775,0.05716,101600.0,101580.0,0.20673305]
[1762297537776,0.29993039,101600.0,101580.0,0.20673305]
[1762297538298,0.10308,101600.0,101590.0,0.19686977]
[1762297538587,0.25403137,101590.0,101570.0,0.20673457]
[1762297538803,0.05716,101590.0,101580.0,0.19688915]
[1762297539038,0.05716,101590.0,101570.0,0.29209779]
[1762297539039,0.25402977,101590.0,101570.0,0.78282181]
[1762297539242,0.25402977,101590.0,101570.0,0.19690853]
[1762297539243,0.05716,101580.0,101570.0,0.19690853]
[1762297539452,0.25404915,101580.0,101560.0,0.19692717]
[1762297539653,0.07381,101570.0,101560.0,0.19692717]
[1762297539764,0.07948,101600.0,101560.0,0.78300523]
[1762297539987,0.2233242,101610.0,101580.0,0.19688914]
[1762297539988,0.2569242,101610.0,101580.0,0.19688914]
[1762297540209,0.27637039,101600.0,101570.0,0.85832217]
[1762297540435,0.27637039,101600.0,101560.0,0.20691799]
[1762297540436,0.02366,101580.0,101560.0,0.20691799]
[1762297540642,0.04017,101570.0,101560.0,0.20691799]
[1762297540842,0.01651,101570.0,101560.0,0.54691799]
[1762297541043,0.30258236,101600.0,101580.0,0.19688915]
[1762297541245,0.25318977,101590.0,101570.0,0.19690778]
[1762297541448,0.24918977,101590.0,101580.0,0.19688915]
[1762297541651,0.02366,101580.0,101570.0,0.19690778]
[1762297541851,0.02366,101580.0,101560.0,0.54691799]
[1762297541852,0.002,101570.0,101560.0,1.12300523]
[1762297542052,0.05947,101580.0,101570.0,0.19690853]
[1762297542254,0.23269915,101580.0,101560.0,0.54691799]
[1762297542454,0.30225853,101570.0,101560.0,0.34014443]
[1762297543018,0.30325853,101570.0,101560.0,0.19707235]
[1762297543387,0.10635,101570.0,101560.0,0.19707235]
[1762297543658,0.30325853,101570.0,101560.0,0.00014443]
[1762297544213,2.87834577,101570.0,101550.0,0.34]
[1762297544411,2.87834577,101570.0,101520.0,0.20685568]
[1762297544412,2.22058792,101560.0,101520.0,0.20685568]
[1762297544625,0.2885157,101550.0,101520.0,0.22275568]
[1762297544821,0.04588,101550.0,101530.0,0.08536322]
[1762297545019,0.03618228,101560.0,101540.0,0.19696671]
[1762297545270,0.23273842,101560.0,101550.0,0.00970969]
[1762297545432,0.30227843,101560.0,101540.0,0.01969667]
[1762297545774,0.007,101550.0,101530.0,0.20679929]
[1762297545988,0.19694731,101550.0,101530.0,0.20679929]
[1762297546202,0.27861843,101560.0,101540.0,0.19696671]
[1762297546338,0.19694731,101550.0,101540.0,0.19696671]
[1762297546543,0.25277814,101570.0,101550.0,0.21284731]
[1762297546768,0.24293339,101570.0,101560.0,0.19692792]
[1762297546940,0.24293339,101570.0,101550.0,0.19694731]
[1762297547150,0.24293339,101570.0,101560.0,0.19692792]
[1762297547374,0.19692792,101560.0,101540.0,0.20681504]
[1762297547578,0.19692792,101560.0,101550.0,0.19694731]
[1762297547793,0.30240339,101570.0,101550.0,0.19694731]
[1762297547794,0.19705272,101570.0,101560.0,0.19692792]
[1762297547958,0.20305272,101570.0,101550.0,0.2128472]
[1762297548162,0.19705272,101570.0,101550.0,0.29821042]
[1762297548399,0.19780133,101570.0,101550.0,0.28231042]
[1762297548609,0.00014419,101570.0,101560.0,0.19692792]
[1762297548756,0.19705272,101570.0,101560.0,0.19692792]
[1762297549111,0.19692792,101560.0,101550.0,0.1969472]
[1762297549261,0.19705272,101570.0,101550.0,0.1969472]
[1762297549463,0.20205272,101570.0,101550.0,0.1969472]
[1762297549655,0.20205272,101570.0,101560.0,0.19692792]
[1762297549861,0.25639792,101560.0,101540.0,0.19696435]
[1762297550179,0.30223792,101560.0,101540.0,0.19696435]
[1762297550392,0.26642792,101560.0,101540.0,0.19696435]
[1762297550594,0.19694731,101550.0,101540.0,0.19696435]
[1762297550777,0.26642792,101560.0,101540.0,0.19696435]
[1762297551152,0.26642792,101560.0,101530.0,0.86827006]
[1762297551153,0.19694731,101550.0,101530.0,0.29218282]
[1762297551346,0.19694731,101550.0,101530.0,0.30808282]
[1762297551579,0.19694731,101550.0,101540.0,0.19696671]
[1762297552114,0.30908712,101560.0,101550.0,0.19694731]
[1762297552320,0.27857792,101560.0,101540.0,0.19696671]
[1762297552674,0.24276792,101560.0,101550.0,0.19694731]
[1762297553179,0.24276792,101560.0,101540.0,0.19696671]
[1762297553327,0.002,101550.0,101540.0,0.19696671]
[1762297554276,0.19894731,101550.0,101540.0,0.19696671]
[1762297554603,0.24674974,101550.0,101530.0,0.30808282]
[1762297554806,0.19894731,101550.0,101540.0,0.19696671]
[1762297554943,0.01651,101540.0,101530.0,0.2068196]
[1762297555926,0.01651,101550.0,101540.0,0.19696671]
[1762297556273,0.21345731,101550.0,101540.0,0.19696671]
[1762297556473,0.01651,101550.0,101540.0,0.19696671]
[1762297556710,0.04700343,101550.0,101540.0,0.19696671]
[1762297558004,0.24395074,101550.0,101540.0,0.19696671]
[1762297558242,0.24595074,101550.0,101540.0,0.19696671]
[1762297558461,0.30542074,101550.0,101530.0,0.2068196]
[1762297558744,0.26630671,101540.0,101530.0,0.19698611]
[1762297559489,0.04568,101540.0,101530.0,0.19698611]
[1762297559707,0.24264671,101540.0,101530.0,0.19698611]
[1762297559935,0.24264671,101540.0,101530.0,0.08536322]
[1762297560232,0.24264671,101540.0,101530.0,0.28234933]
[1762297560474,0.31549827,101540.0,101520.0,0.20685568]
[1762297560672,0.22064611,101530.0,101510.0,0.19702337]
[1762297560790,0.22064611,101530.0,101510.0,0.19702464]
[1762297560791,0.25645611,101530.0,101510.0,0.19702464]
[1762297560990,0.35601308,101530.0,101510.0,0.19702492]
[1762297561198,0.19700551,101520.0,101500.0,0.38812525]
[1762297561445,0.19700551,101520.0,101500.0,0.37229371]
[1762297561615,0.25913492,101510.0,101500.0,0.0159]
[1762297561827,0.25913492,101510.0,101500.0,0.2134259]
[1762297562252,0.25913492,101510.0,101500.0,0.01638157]
[1762297562638,0.31860492,101510.0,101500.0,0.00048157]
[1762297563290,0.25913492,101510.0,101500.0,0.00048157]
[1762297563491,0.30669996,101510.0,101500.0,0.00048157]
[1762297564078,0.36716996,101510.0,101500.0,0.00048157]
[1762297564914,0.40335224,101510.0,101500.0,0.00048157]
[1762297565123,2.97943948,101510.0,101500.0,0.00048157]
[1762297565560,3.31943948,101510.0,101500.0,0.00048157]
[1762297566366,2.74335224,101510.0,101500.0,0.00048157]
[1762297566603,2.77401241,101510.0,101500.0,0.00048157]
[1762297566730,3.31943948,101510.0,101500.0,0.00048157]
[1762297566926,3.27283948,101510.0,101500.0,0.00048157]
[1762297567130,3.31843948,101510.0,101500.0,0.00048157]
[1762297567331,3.32143948,101510.0,101500.0,0.00048157]
[1762297567968,2.74535224,101510.0,101500.0,0.00048157]
[1762297568307,3.32143948,101510.0,101500.0,0.00048157]
[1762297568862,3.32143948,101510.0,101500.0,1e-08]
[1762297569106,3.35209965,101510.0,101500.0,1e-08]
[1762297569462,3.32143948,101510.0,101500.0,1e-08]
[1762297570467,3.36209964,101510.0,101500.0,1e-08]
[1762297570670,3.29041728,101510.0,101500.0,1e-08]
[1762297570916,3.27562711,101510.0,101500.0,1e-08]
[1762297571113,3.32562711,101510.0,101500.0,1e-08]
[1762297571721,3.32262711,101510.0,101500.0,1e-08]
[1762297571941,3.32962711,101510.0,101500.0,1e-08]
[1762297572074,3.36028728,101510.0,101500.0,1e-08]
[1762297572272,3.32962711,101510.0,101500.0,1e-08]
[1762297572482,3.93637452,101510.0,101500.0,1e-08]
[1762297573114,3.14937211,101470.0,101460.0,0.005]
[1762297573324,3.23241211,101470.0,101460.0,0.00509497]
[1762297573572,3.26552211,101470.0,101460.0,0.00509497]
[1762297574385,3.27052211,101470.0,101460.0,0.00509497]
[1762297576075,3.27048211,101470.0,101460.0,0.00509497]
[1762297576884,3.22500211,101470.0,101460.0,0.00509497]
[1762297577085,3.37003908,101470.0,101460.0,1e-08]
[1762297577286,0.19719976,101420.0,101410.0,0.01169913]
[1762297577657,0.19719976,101420.0,101410.0,0.01179411]
[1762297578036,0.29060032,101430.0,101410.0,0.29437653]
[1762297578235,0.19719976,101420.0,101410.0,0.29437653]
[1762297579097,0.19719976,101420.0,101410.0,0.09715733]
[1762297579300,0.19719976,101420.0,101410.0,0.29437653]
[1762297579500,0.29060032,101430.0,101410.0,0.29637653]
[1762297579703,0.19719976,101420.0,101410.0,0.29637653]
[1762297579894,0.19719976,101420.0,101410.0,0.09915733]
[1762297580095,0.29060032,101430.0,101410.0,0.29637653]
[1762297580096,0.30205528,101430.0,101410.0,0.29637653]
[1762297580294,0.30205528,101430.0,101410.0,0.29437653]
[1762297580556,0.19719976,101420.0,101410.0,0.10015733]
[1762297580762,0.21884976,101420.0,101410.0,0.01479411]
[1762297580885,0.25195976,101420.0,101410.0,0.00353411]
[1762297581092,0.25195976,101420.0,101410.0,0.00553411]
[1762297581383,0.828047,101420.0,101410.0,0.00553411]
[1762297581559,2.86422928,101420.0,101410.0,0.00553411]
[1762297582164,3.20422928,101420.0,101410.0,0.00553411]
[1762297582367,3.34442975,101420.0,101410.0,0.00553411]
[1762297582573,3.31378624,101420.0,101410.0,0.00353411]
[1762297582901,0.1972192,101410.0,101390.0,0.0004]
[1762297583099,3.21659817,101400.0,101390.0,0.00088169]
[1762297583256,3.24970817,101400.0,101390.0,0.00115686]
[1762297583457,3.34926514,101400.0,101390.0,0.00115686]
[1762297583813,3.96599588,101400.0,101390.0,0.00115686]
[1762297584026,3.96599588,101400.0,101330.0,0.29088611]
[1762297584027,0.19731649,101360.0,101330.0,0.29088611]
[1762297584175,0.19731649,101360.0,101330.0,0.09376596]
[1762297584176,0.19735543,101340.0,101330.0,0.09376596]
[1762297584362,0.19735543,101340.0,101330.0,0.29114087]
[1762297584707,0.24279543,101340.0,101330.0,0.00840274]
[1762297585534,0.26444543,101340.0,101330.0,0.00840274]
[1762297585737,0.1002,101340.0,101330.0,0.20577765]
[1762297586178,0.1002,101340.0,101330.0,0.20777765]
[1762297586591,0.01587,101350.0,101340.0,0.19735543]
[1762297586797,0.01587,101360.0,101350.0,0.19733596]
[1762297587002,0.0454,101350.0,101340.0,0.77344267]
[1762297587208,0.0454,101350.0,101340.0,0.19735543]
[1762297588188,0.0454,101350.0,101330.0,0.33147961]
[1762297588189,0.24273596,101350.0,101330.0,0.90756685]
[1762297588389,0.19735543,101340.0,101330.0,0.87709685]
[1762297588589,0.21318743,101360.0,101340.0,0.25038543]
[1762297588740,0.19733596,101350.0,101340.0,0.57708724]
[1762297588974,0.19733596,101350.0,101330.0,0.87709685]
[1762297589202,0.19733596,101350.0,101340.0,0.19735543]
[1762297590185,0.19733596,101350.0,101340.0,0.19835543]
[1762297590927,0.38933793,101360.0,101340.0,0.19835543]
[1762297591124,0.31330283,101360.0,101340.0,0.19835543]
[1762297591350,0.06131,101360.0,101350.0,0.19733596]
[1762297591555,0.25862649,101360.0,101350.0,0.19733596]
[1762297591761,0.06131,101360.0,101350.0,0.19733596]
[1762297591964,0.28100649,101360.0,101350.0,0.19733596]
[1762297592358,0.03925,101360.0,101350.0,0.19733596]
[1762297592573,0.06219,101360.0,101350.0,0.20425596]
[1762297592771,0.06119,101360.0,101350.0,0.20425596]
[1762297592955,0.24263649,101360.0,101350.0,0.00692]
[1762297593576,0.26501649,101360.0,101350.0,0.00692]